bitfinex/quotes_BTCUSD_20250904
["timestamp","ask_amount","ask_price","bid_price","bid_amount"]
[1756993206470,1.60656324,110760.0,110750.0,1e-08]
[1756993207100,1.43612324,110760.0,110750.0,1e-08]
[1756993207375,0.88961402,110760.0,110750.0,1e-08]
[1756993207589,0.86714922,110760.0,110750.0,1e-08]
[1756993207801,1.48133558,110760.0,110750.0,1e-08]
[1756993208022,0.86190922,110760.0,110750.0,1e-08]
[1756993208216,1.46722245,110760.0,110750.0,1e-08]
[1756993208424,1.57848852,110760.0,110750.0,1e-08]
[1756993208643,1.48657253,110760.0,110750.0,1e-08]
[1756993209283,1.48149253,110760.0,110750.0,1e-08]
[1756993209493,1.48662253,110760.0,110750.0,1e-08]
[1756993209917,1.48149253,110760.0,110750.0,1e-08]
[1756993210123,0.77560323,110760.0,110750.0,1e-08]
[1756993210327,1.55950844,110760.0,110750.0,1e-08]
[1756993210738,1.29281245,110760.0,110750.0,1e-08]
[1756993210959,0.77067323,110760.0,110750.0,1e-08]
[1756993211180,0.7435306,110760.0,110750.0,1e-08]
[1756993211395,1.34873383,110760.0,110750.0,1e-08]
[1756993211601,0.77968988,110760.0,110750.0,1e-08]
[1756993211810,1.49103119,110760.0,110750.0,1e-08]
[1756993212262,1.47315119,110760.0,110750.0,1e-08]
[1756993212526,1.47626119,110760.0,110750.0,1e-08]
[1756993212730,0.87618796,110760.0,110750.0,1e-08]
[1756993212955,1.47113119,110760.0,110750.0,1e-08]
[1756993213170,1.47626119,110760.0,110750.0,1e-08]
[1756993213390,1.45060982,110760.0,110750.0,1e-08]
[1756993213772,1.56187727,110760.0,110750.0,1e-08]
[1756993213984,1.56817621,110760.0,110750.0,1e-08]
[1756993214218,1.56817622,110760.0,110750.0,1e-08]
[1756993214442,1.56187727,110760.0,110750.0,1e-08]
[1756993214648,1.47424104,110760.0,110750.0,1e-08]
[1756993214865,1.46996128,110760.0,110750.0,1e-08]
[1756993215055,1.37602529,110760.0,110750.0,1e-08]
[1756993215348,1.37431529,110760.0,110750.0,1e-08]
[1756993215565,1.35496383,110760.0,110750.0,1e-08]
[1756993215967,1.36009383,110760.0,110750.0,1e-08]
[1756993216216,0.87130103,110760.0,110750.0,1e-08]
[1756993216460,0.58993504,110760.0,110750.0,1e-08]
[1756993216678,0.7546906,110760.0,110750.0,1e-08]
[1756993216926,1.35476383,110760.0,110750.0,1e-08]
[1756993217148,0.05,110760.0,110750.0,0.18058691]
[1756993217369,0.27455595,110770.0,110750.0,0.2725029]
[1756993217370,0.41489518,110770.0,110750.0,0.2725029]
[1756993217636,0.00034083,110770.0,110760.0,0.27248659]
[1756993217861,0.02713553,110780.0,110770.0,0.20149312]
[1756993218113,0.05,110810.0,110800.0,0.18050541]
[1756993218333,0.23047283,110820.0,110800.0,0.09191599]
[1756993218552,0.23047283,110820.0,110800.0,0.2724214]
[1756993218553,0.18048912,110810.0,110800.0,0.2724214]
[1756993218774,0.23047283,110820.0,110800.0,0.27241988]
[1756993218998,0.18048912,110810.0,110800.0,0.27241816]
[1756993219226,0.18048912,110810.0,110790.0,0.24703422]
[1756993219480,0.18050541,110800.0,110790.0,0.09191599]
[1756993219914,0.23048912,110810.0,110790.0,0.27243769]
[1756993220146,0.23048912,110810.0,110800.0,0.001]
[1756993220374,0.83056235,110810.0,110800.0,0.001]
[1756993220612,0.18050541,110800.0,110780.0,0.18053793]
[1756993220837,0.1805217,110790.0,110780.0,0.09191599]
[1756993221058,0.1805217,110790.0,110780.0,0.27245399]
[1756993221279,0.05,110800.0,110790.0,0.1805217]
[1756993221498,0.23050541,110800.0,110790.0,0.1805217]
[1756993221720,0.23050541,110800.0,110780.0,0.27245399]
[1756993221933,0.23050541,110800.0,110790.0,0.002]
[1756993222147,0.05,110800.0,110790.0,0.1825217]
[1756993222362,0.23050541,110800.0,110790.0,0.1825217]
[1756993222574,0.57049031,110810.0,110800.0,0.18050541]
[1756993222867,0.57049031,110810.0,110790.0,0.27243769]
[1756993223110,0.57049031,110810.0,110800.0,0.18050541]
[1756993223332,0.18050541,110800.0,110790.0,0.09191599]
[1756993223556,0.18050541,110800.0,110790.0,0.27243769]
[1756993224000,0.18052464,110790.0,110780.0,0.005]
[1756993224232,0.18052464,110790.0,110780.0,0.09691599]
[1756993224462,0.180538,110780.0,110770.0,0.2470742]
[1756993224700,0.180538,110780.0,110770.0,0.33903723]
[1756993224956,0.83059787,110790.0,110780.0,0.180538]
[1756993224957,0.23052464,110790.0,110780.0,0.180538]
[1756993225189,0.180538,110780.0,110770.0,0.33903723]
[1756993225883,0.180538,110780.0,110770.0,0.27251723]
[1756993226091,0.180538,110780.0,110770.0,0.09196303]
[1756993226302,0.05,110790.0,110770.0,0.27251733]
[1756993226519,0.05,110790.0,110780.0,0.180538]
[1756993226520,0.23052319,110790.0,110780.0,0.180538]
[1756993226958,0.39,110800.0,110790.0,0.1805217]
[1756993227179,0.05,110800.0,110790.0,0.1805217]
[1756993227404,0.39,110810.0,110800.0,0.18050541]
[1756993227624,0.05,110820.0,110810.0,0.1804771]
[1756993227869,0.05,110830.0,110820.0,0.18047283]
[1756993228319,0.23045655,110830.0,110820.0,0.36323283]
[1756993228535,0.23053241,110840.0,110830.0,0.18045655]
[1756993228971,0.23067324,110840.0,110820.0,0.36323283]
[1756993229406,0.18045655,110830.0,110820.0,0.18047283]
[1756993229624,0.18047283,110820.0,110810.0,0.28141754]
[1756993229841,0.18048915,110810.0,110800.0,0.3628653]
[1756993230054,0.78056238,110810.0,110800.0,0.09191599]
[1756993230278,0.39,110820.0,110810.0,0.18048912]
[1756993230492,0.23947937,110830.0,110810.0,0.45476511]
[1756993230711,0.57947937,110830.0,110810.0,0.45476511]
[1756993230938,0.18047283,110820.0,110810.0,0.27240511]
[1756993231147,0.18047283,110820.0,110810.0,0.27423599]
[1756993231366,0.18048912,110810.0,110800.0,0.18953029]
[1756993231573,0.18048912,110810.0,110800.0,0.4547814]
[1756993231796,0.18048912,110810.0,110800.0,0.4567814]
[1756993232042,0.23047283,110820.0,110810.0,0.18048912]
[1756993232260,0.23047283,110820.0,110800.0,0.4567814]
[1756993232681,0.18048912,110810.0,110800.0,0.4565814]
[1756993232907,0.23047283,110820.0,110810.0,0.18048912]
[1756993233335,0.23047283,110820.0,110810.0,0.18204]
[1756993233558,0.18048912,110810.0,110800.0,0.2744214]
[1756993233768,0.83569235,110810.0,110800.0,0.002]
[1756993234056,0.83569235,110810.0,110800.0,0.001]
[1756993235148,1.01749235,110810.0,110800.0,0.001]
[1756993235377,0.05,110810.0,110800.0,0.18050541]
[1756993235613,0.59433907,110820.0,110810.0,0.18048912]
[1756993235614,0.39,110820.0,110810.0,0.18048912]
[1756993235855,0.39,110820.0,110810.0,0.36212912]
[1756993236156,0.23067324,110840.0,110820.0,0.18047283]
[1756993236388,0.2305811,110840.0,110830.0,0.36427225]
[1756993236596,0.2305811,110840.0,110830.0,0.36201655]
[1756993236597,0.05014083,110840.0,110830.0,0.36201655]
[1756993237087,0.05014083,110840.0,110830.0,0.45393254]
[1756993237088,0.00014083,110840.0,110830.0,0.45393254]
[1756993237515,0.00014083,110840.0,110830.0,1.07494459]
[1756993237743,0.00014083,110840.0,110830.0,0.47487136]
[1756993238450,0.00014083,110840.0,110830.0,0.27237254]
[1756993238661,0.00014083,110840.0,110830.0,0.27637254]
[1756993239299,0.00014083,110840.0,110830.0,0.45749254]
[1756993239838,0.1805811,110840.0,110830.0,0.46045254]
[1756993240040,0.1805811,110840.0,110830.0,0.18788]
[1756993240041,0.83065433,110840.0,110830.0,0.18788]
[1756993240296,0.83065433,110840.0,110830.0,0.007]
[1756993240498,0.18045655,110830.0,110820.0,0.42779201]
[1756993240720,0.83065433,110840.0,110820.0,0.519708]
[1756993240883,0.2305811,110840.0,110820.0,0.519708]
[1756993241074,0.2305811,110840.0,110830.0,0.18345655]
[1756993241309,0.05014083,110840.0,110830.0,0.18045655]
[1756993241485,0.2305811,110840.0,110830.0,0.18045655]
[1756993241681,0.05014083,110840.0,110830.0,0.18045655]
[1756993241885,0.2305811,110840.0,110830.0,0.18045655]
[1756993242087,0.2305811,110840.0,110830.0,0.18245655]
[1756993242352,0.2305811,110840.0,110830.0,0.002]
[1756993242495,0.18045655,110830.0,110820.0,0.338868]
[1756993242720,0.18048037,110820.0,110800.0,0.32955699]
[1756993243009,0.18048037,110820.0,110810.0,0.45268511]
[1756993243228,0.23341037,110820.0,110810.0,0.18028]
[1756993243681,0.62070696,110820.0,110810.0,0.18028]
[1756993244123,0.23048912,110810.0,110800.0,0.06648]
[1756993244298,0.61580325,110810.0,110800.0,0.42778541]
[1756993244535,0.23048912,110810.0,110800.0,0.42778541]
[1756993244752,0.62072325,110810.0,110780.0,0.2631107]
[1756993244981,0.56583583,110790.0,110780.0,0.15839599]
[1756993245194,0.61876583,110790.0,110780.0,0.18076]
[1756993245402,0.62704662,110790.0,110780.0,0.18076]
[1756993245652,0.18054957,110780.0,110760.0,0.32951993]
[1756993245864,0.18054957,110780.0,110770.0,0.45323029]
[1756993246074,0.23546957,110780.0,110770.0,0.18064]
[1756993246284,0.6207837,110780.0,110770.0,0.18068704]
[1756993246484,0.23546957,110780.0,110770.0,0.18068704]
[1756993246691,0.6207837,110780.0,110770.0,0.18068704]
[1756993246912,0.6207837,110780.0,110770.0,0.18056704]
[1756993247354,0.64013498,110780.0,110770.0,0.18056704]
[1756993247529,0.25482085,110780.0,110770.0,0.18056704]
[1756993247754,0.30167506,110780.0,110770.0,4.704e-05]
[1756993247964,1.03328987,110780.0,110770.0,4.704e-05]
[1756993248230,1.05746333,110780.0,110770.0,4.704e-05]
[1756993248436,0.82877574,110780.0,110770.0,4.704e-05]
[1756993248650,1.02698919,110780.0,110770.0,4.704e-05]
[1756993248861,1.05745954,110780.0,110770.0,4.704e-05]
[1756993249283,0.9864203,110780.0,110770.0,0.00404704]
[1756993249713,0.9864203,110780.0,110770.0,0.18060134]
[1756993249919,0.07564817,110780.0,110770.0,0.18060134]
[1756993250122,0.25618617,110780.0,110770.0,0.18060134]
[1756993250337,0.26110617,110780.0,110770.0,0.00104704]
[1756993250553,0.66618491,110780.0,110770.0,0.00104704]
[1756993251054,0.84734491,110780.0,110770.0,0.00104704]
[1756993251286,0.9864203,110780.0,110770.0,0.00104704]
[1756993251515,0.55110617,110780.0,110770.0,0.18160134]
[1756993251725,0.9815003,110780.0,110770.0,0.00104704]
[1756993251931,0.59911617,110780.0,110770.0,0.00104704]
[1756993252138,0.59618617,110780.0,110770.0,0.18160134]
[1756993252555,0.59618617,110780.0,110770.0,4.704e-05]
[1756993252772,0.9844303,110780.0,110770.0,4.704e-05]
[1756993252976,0.59618617,110780.0,110770.0,0.18060134]
[1756993253116,0.59618617,110780.0,110770.0,0.36156134]
[1756993253364,0.57683489,110780.0,110770.0,0.36156134]
[1756993253567,0.57682465,110780.0,110770.0,0.36156134]
[1756993253795,0.59613759,110780.0,110770.0,0.18100704]
[1756993253998,0.41559959,110780.0,110770.0,0.36156134]
[1756993254168,0.59613759,110780.0,110770.0,0.36156134]
[1756993254375,0.05628665,110780.0,110770.0,0.36156134]
[1756993254629,0.05628665,110780.0,110770.0,0.36256134]
[1756993254831,0.0562854,110780.0,110770.0,0.36256134]
[1756993255044,0.05,110780.0,110770.0,0.36256134]
[1756993255680,0.233468,110780.0,110770.0,0.18200704]
[1756993255897,0.62077213,110780.0,110770.0,0.36256134]
[1756993256113,0.235458,110780.0,110770.0,0.36256134]
[1756993256362,0.05,110780.0,110770.0,0.18160134]
[1756993256535,0.05,110780.0,110770.0,0.36184134]
[1756993256734,0.230538,110780.0,110770.0,0.36184134]
[1756993256971,0.05,110780.0,110770.0,0.36184134]
[1756993257189,0.02710346,110800.0,110770.0,0.46278504]
[1756993257404,0.98433822,110800.0,110790.0,0.1805217]
[1756993257612,0.05,110790.0,110780.0,0.18052458]
[1756993257826,0.05,110800.0,110790.0,0.1805217]
[1756993258039,0.23048912,110810.0,110800.0,0.18050541]
[1756993258243,0.2560826,110810.0,110800.0,0.17992]
[1756993258660,0.07559348,110810.0,110800.0,0.36042541]
[1756993258867,0.5960826,110810.0,110800.0,0.36042541]
[1756993259077,0.98139673,110810.0,110800.0,0.36042541]
[1756993259496,0.18050541,110800.0,110790.0,0.3604417]
[1756993259709,0.62073954,110800.0,110790.0,0.3601617]
[1756993259923,0.62073954,110800.0,110780.0,0.27245375]
[1756993260133,0.1805217,110790.0,110780.0,0.27245375]
[1756993260349,0.43531413,110800.0,110790.0,0.1805217]
[1756993260556,0.23249541,110800.0,110780.0,0.27245375]
[1756993260769,0.61876583,110790.0,110770.0,0.25610905]
[1756993260980,0.2305217,110790.0,110780.0,0.359978]
[1756993261194,0.61581954,110800.0,110790.0,0.1805217]
[1756993261408,0.23679031,110800.0,110790.0,0.1805217]
[1756993261590,0.23050541,110800.0,110790.0,0.1805217]
[1756993261896,0.23679026,110800.0,110790.0,0.1805217]
[1756993262339,0.18053265,110790.0,110780.0,0.360898]
[1756993262568,0.00492,110790.0,110780.0,0.45281399]
[1756993262781,0.05,110800.0,110790.0,0.1805217]
[1756993263208,0.23050541,110800.0,110790.0,0.1805217]
[1756993263436,0.62073954,110800.0,110780.0,0.45181369]
[1756993263646,0.23050541,110800.0,110790.0,0.1805217]
[1756993263864,0.1805217,110790.0,110780.0,0.27245369]
[1756993264075,0.1825117,110790.0,110780.0,0.45265399]
[1756993264282,0.1834517,110790.0,110780.0,0.45265399]
[1756993264497,0.1834517,110790.0,110780.0,0.360738]
[1756993264498,0.62075583,110790.0,110780.0,0.360738]
[1756993264722,0.62075583,110790.0,110770.0,0.25610905]
[1756993264919,0.183468,110780.0,110770.0,0.24708102]
[1756993265059,0.61878213,110780.0,110770.0,4.704e-05]
[1756993265280,0.62077213,110780.0,110770.0,4.704e-05]
[1756993265744,0.96077213,110780.0,110770.0,4.704e-05]
[1756993265902,0.96077213,110780.0,110770.0,0.18060134]
[1756993265903,0.39293,110780.0,110770.0,0.18060134]
[1756993266109,0.575458,110780.0,110770.0,0.18060134]
[1756993266308,0.575458,110780.0,110770.0,4.704e-05]
[1756993266535,0.575458,110780.0,110770.0,0.00204704]
[1756993266694,0.575458,110780.0,110770.0,0.18360134]
[1756993266894,0.575458,110780.0,110770.0,0.18160134]
[1756993267090,0.575458,110780.0,110770.0,4.704e-05]
[1756993267889,0.96077213,110780.0,110770.0,4.704e-05]
[1756993268100,0.96706083,110780.0,110770.0,4.704e-05]
[1756993268312,0.96077213,110780.0,110770.0,0.18060134]
[1756993268530,0.96077213,110780.0,110770.0,4.704e-05]
[1756993268941,0.575458,110780.0,110770.0,4.704e-05]
[1756993269129,0.575458,110780.0,110770.0,0.00104704]
[1756993269552,0.96077213,110780.0,110770.0,0.00104704]
[1756993269782,1.05268812,110780.0,110770.0,0.00104704]
[1756993270020,0.96077213,110780.0,110770.0,0.00104704]
[1756993270227,0.60110371,110780.0,110770.0,0.00104704]
[1756993270426,0.98641784,110780.0,110770.0,0.00104704]
[1756993270832,0.98641784,110780.0,110770.0,0.18160134]
[1756993271042,0.96077213,110780.0,110770.0,0.18160134]
[1756993271247,0.98643378,110780.0,110770.0,0.00104704]
[1756993271518,0.60111965,110780.0,110770.0,0.00104704]
[1756993271658,0.98643378,110780.0,110770.0,0.00104704]
[1756993272542,0.02566707,110780.0,110770.0,0.18160134]
[1756993272745,0.230538,110780.0,110770.0,0.18160134]
[1756993272952,0.05,110780.0,110770.0,0.18385826]
[1756993273160,0.230538,110780.0,110770.0,0.00104704]
[1756993273367,0.26249212,110780.0,110770.0,0.18040704]
[1756993273620,0.62745246,110780.0,110770.0,0.00104704]
[1756993273829,0.98684031,110780.0,110770.0,0.00104704]
[1756993274026,0.98684031,110780.0,110770.0,4.704e-05]
[1756993274874,1.12755976,110780.0,110770.0,0.00204704]
[1756993275093,0.00902771,110770.0,110740.0,0.17908]
[1756993275304,0.23060321,110740.0,110720.0,0.26315278]
[1756993275505,0.79847734,110740.0,110720.0,0.53493995]
[1756993275712,0.23376321,110740.0,110720.0,0.53493995]
[1756993275921,0.23376321,110740.0,110720.0,0.34533348]
[1756993275922,0.18061952,110730.0,110720.0,0.34533348]
[1756993276168,0.18061952,110730.0,110720.0,0.52810931]
[1756993276358,0.05316,110740.0,110730.0,0.18061952]
[1756993276565,0.05,110740.0,110730.0,0.18061952]
[1756993276771,0.05,110740.0,110730.0,0.18275952]
[1756993277191,0.23060321,110740.0,110730.0,0.18275952]
[1756993277323,0.05,110740.0,110730.0,0.18275952]
[1756993277579,0.74958708,110750.0,110730.0,0.18275952]
[1756993277793,0.18060321,110740.0,110730.0,0.00214]
[1756993278008,0.18060321,110740.0,110730.0,0.18275952]
[1756993278214,0.75274708,110750.0,110740.0,0.18060321]
[1756993278428,0.52058708,110750.0,110740.0,0.18274321]
[1756993278633,0.39,110750.0,110740.0,0.18274321]
[1756993278850,0.5705869,110750.0,110740.0,0.00214]
[1756993279050,0.18060321,110740.0,110730.0,0.002]
[1756993279249,0.75471821,110750.0,110730.0,0.27453551]
[1756993279476,0.7493869,110750.0,110740.0,0.18286075]
[1756993279765,0.25923002,110760.0,110750.0,0.1805869]
[1756993280141,0.44431819,110760.0,110750.0,0.1827269]
[1756993280344,0.51876,110760.0,110750.0,0.1827269]
[1756993280554,0.5205706,110760.0,110750.0,0.00214]
[1756993280763,0.1805869,110750.0,110740.0,0.4522792]
[1756993280969,0.001,110750.0,110740.0,0.4544192]
[1756993281412,0.34,110760.0,110750.0,0.1805869]
[1756993281620,0.5205706,110760.0,110750.0,0.1827269]
[1756993281834,0.003,110760.0,110750.0,0.1827269]
[1756993282454,0.003,110760.0,110750.0,0.66200702]
[1756993282869,0.003,110760.0,110750.0,0.27669289]
[1756993283071,0.003,110760.0,110750.0,0.66200702]
[1756993283286,0.41788639,110780.0,110770.0,0.1805543]
[1756993283486,0.44354207,110780.0,110770.0,0.00214]
[1756993283693,0.40885949,110780.0,110770.0,0.00439692]
[1756993283943,0.23056214,110770.0,110760.0,0.17816]
[1756993284150,0.05,110770.0,110760.0,0.1805706]
[1756993284359,0.80320052,110780.0,110770.0,0.1805543]
[1756993284563,0.05,110780.0,110770.0,0.1822343]
[1756993284772,0.051,110780.0,110770.0,0.1822343]
[1756993284995,0.233668,110780.0,110760.0,0.3585706]
[1756993285245,0.235828,110780.0,110760.0,0.45048659]
[1756993285452,0.235828,110780.0,110760.0,0.45040659]
[1756993285674,0.1805543,110770.0,110760.0,0.45040659]
[1756993285887,0.1805543,110770.0,110760.0,0.45204659]
[1756993286087,0.1805543,110770.0,110760.0,0.27416659]
[1756993286333,0.1805543,110770.0,110760.0,0.45192659]
[1756993286540,0.233698,110780.0,110760.0,0.45192659]
[1756993286747,0.1805543,110770.0,110760.0,0.45196659]
[1756993286967,0.61901213,110780.0,110760.0,0.45396659]
[1756993287179,0.233698,110780.0,110760.0,0.45396659]
[1756993287396,0.233698,110780.0,110760.0,0.27616613]
[1756993287619,0.1805543,110770.0,110760.0,0.45392613]
[1756993287815,0.1858443,110770.0,110760.0,0.09291599]
[1756993288064,0.3634443,110770.0,110760.0,0.001]
[1756993288277,0.3581543,110770.0,110760.0,0.1832506]
[1756993288498,0.230538,110780.0,110770.0,0.1805543]
[1756993288706,0.41424117,110780.0,110770.0,0.1822343]
[1756993288954,0.43360185,110780.0,110770.0,0.00168]
[1756993289178,0.1805543,110770.0,110760.0,0.27248659]
[1756993289389,0.79641213,110780.0,110760.0,0.27616659]
[1756993289631,0.1805543,110770.0,110760.0,0.27616659]
[1756993289848,0.1858443,110770.0,110760.0,0.09391599]
[1756993290065,0.68053666,110770.0,110760.0,0.002]
[1756993290288,1.02684088,110770.0,110760.0,0.002]
[1756993290523,0.1805869,110750.0,110740.0,0.35780321]
[1756993290745,0.1805869,110750.0,110740.0,0.44976624]
[1756993291013,0.1805869,110750.0,110740.0,0.45144624]
[1756993291699,0.2358769,110750.0,110740.0,4.704e-05]
[1756993291912,0.62119103,110750.0,110740.0,4.704e-05]
[1756993292099,0.26154593,110750.0,110740.0,4.704e-05]
[1756993292516,0.26154593,110750.0,110740.0,0.00204704]
[1756993292775,0.64686006,110750.0,110740.0,0.00204704]
[1756993293019,0.82390006,110750.0,110740.0,0.00504704]
[1756993293228,0.25838593,110750.0,110740.0,0.00504704]
[1756993293446,0.43838593,110750.0,110740.0,0.00504704]
[1756993293670,0.82370006,110750.0,110740.0,0.00204704]
[1756993293885,1.4379642,110750.0,110740.0,0.00204704]
[1756993294127,1.46213766,110750.0,110740.0,0.00204704]
[1756993294343,1.3175591,110750.0,110740.0,4.704e-05]
[1756993294548,1.37018167,110750.0,110740.0,4.704e-05]
[1756993295167,1.14338167,110750.0,110740.0,4.704e-05]
[1756993295393,1.37014167,110750.0,110740.0,0.00104704]
[1756993295612,1.19338167,110750.0,110740.0,0.00104704]
[1756993295823,1.37010167,110750.0,110740.0,0.00104704]
[1756993296042,1.37110167,110750.0,110740.0,4.704e-05]
[1756993296270,0.98578754,110750.0,110740.0,4.704e-05]
[1756993296484,1.37110167,110750.0,110740.0,4.704e-05]
[1756993297143,1.28629766,110750.0,110740.0,4.704e-05]
[1756993297354,1.25443568,110750.0,110740.0,4.704e-05]
[1756993298224,1.34680821,110750.0,110740.0,4.704e-05]
[1756993299059,0.96149408,110750.0,110740.0,4.704e-05]
[1756993299375,1.34644821,110750.0,110740.0,4.704e-05]
[1756993299590,1.3735945,110750.0,110740.0,4.704e-05]
[1756993299807,1.46551049,110750.0,110740.0,4.704e-05]
[1756993300030,0.98828037,110750.0,110740.0,4.704e-05]
[1756993300437,1.3735945,110750.0,110740.0,4.704e-05]
[1756993301463,1.3735545,110750.0,110740.0,4.704e-05]
[1756993302297,1.1973545,110750.0,110740.0,4.704e-05]
[1756993302436,1.3738345,110750.0,110740.0,4.704e-05]
[1756993302854,1.46575049,110750.0,110740.0,4.704e-05]
[1756993304173,1.08043636,110750.0,110740.0,4.704e-05]
[1756993304375,1.46575049,110750.0,110740.0,4.704e-05]
[1756993304610,1.3738345,110750.0,110740.0,4.704e-05]
[1756993305655,1.58928885,110750.0,110740.0,4.704e-05]
[1756993305860,1.61346231,110750.0,110740.0,4.704e-05]
[1756993308271,1.63440113,110750.0,110740.0,4.704e-05]
[1756993308507,1.72631712,110750.0,110740.0,4.704e-05]
[1756993308737,1.72001268,110750.0,110740.0,4.704e-05]
[1756993308927,1.72630086,110750.0,110740.0,4.704e-05]
[1756993309171,1.71905268,110750.0,110740.0,4.704e-05]
[1756993309405,1.72534086,110750.0,110740.0,4.704e-05]
[1756993309639,1.71905268,110750.0,110740.0,4.704e-05]
[1756993310071,1.54982022,110750.0,110740.0,4.704e-05]
[1756993310245,1.72518022,110750.0,110740.0,4.704e-05]
[1756993310679,1.72501973,110750.0,110740.0,4.704e-05]
[1756993311270,1.58208117,110750.0,110740.0,4.704e-05]
[1756993311472,1.77396294,110750.0,110740.0,4.704e-05]
[1756993311976,1.77509871,110750.0,110740.0,4.704e-05]
[1756993312438,1.79122943,110750.0,110740.0,4.704e-05]
[1756993313336,1.79170943,110750.0,110740.0,4.704e-05]
[1756993313563,1.16563172,110750.0,110740.0,4.704e-05]
[1756993313780,1.7654002,110750.0,110740.0,4.704e-05]
[1756993315339,1.71700804,110750.0,110740.0,4.704e-05]
[1756993315794,1.71900804,110750.0,110740.0,4.704e-05]
[1756993316293,1.71672804,110750.0,110740.0,4.704e-05]
[1756993316504,1.72511179,110750.0,110740.0,4.704e-05]
[1756993316716,1.72811179,110750.0,110740.0,4.704e-05]
[1756993316929,1.72799179,110750.0,110740.0,4.704e-05]
[1756993317385,1.79240916,110750.0,110740.0,4.704e-05]
[1756993318434,1.72787179,110750.0,110740.0,4.704e-05]
[1756993319628,1.79228916,110750.0,110740.0,4.704e-05]
[1756993320325,0.52065215,110710.0,110700.0,0.25598478]
[1756993320556,0.72118379,110710.0,110700.0,0.25672596]
[1756993320821,0.54630379,110710.0,110700.0,0.25672596]
[1756993321045,0.72111538,110710.0,110700.0,0.07782749]
[1756993321255,0.72103538,110710.0,110700.0,0.07782749]
[1756993321447,0.54631538,110710.0,110700.0,0.25849596]
[1756993321705,0.59038323,110710.0,110700.0,0.25849596]
[1756993321943,0.06936459,110710.0,110700.0,0.25949596]
[1756993322175,0.40525215,110710.0,110700.0,0.18594965]
[1756993322963,0.2246,110710.0,110700.0,0.18594965]
[1756993323163,0.40525215,110710.0,110700.0,0.18594965]
[1756993323373,0.40525215,110710.0,110700.0,0.00528118]
[1756993323821,0.05,110710.0,110700.0,0.18594965]
[1756993324032,0.40517215,110710.0,110700.0,0.18594965]
[1756993324235,0.22452,110710.0,110700.0,0.18594965]
[1756993324451,0.66617582,110720.0,110710.0,0.18065215]
[1756993324704,0.69184897,110720.0,110710.0,0.18446215]
[1756993324874,0.86636897,110720.0,110710.0,0.18446215]
[1756993325107,0.22452,110720.0,110710.0,0.18446215]
[1756993325557,0.17452,110720.0,110710.0,0.18446215]
[1756993325776,0.59983685,110730.0,110720.0,0.18063583]
[1756993325999,0.79991551,110730.0,110720.0,0.00381]
[1756993326447,0.79991551,110730.0,110720.0,0.18570377]
[1756993326628,0.44489599,110730.0,110720.0,0.18344583]
[1756993326839,0.61909599,110730.0,110720.0,0.18344583]
[1756993327309,0.79971551,110730.0,110720.0,0.18344583]
[1756993327753,1.40048399,110730.0,110720.0,0.00104]
[1756993327974,1.49439998,110730.0,110720.0,0.00104]
[1756993328197,1.40248399,110730.0,110720.0,0.00104]
[1756993328417,1.40542399,110730.0,110720.0,0.00204]
[1756993328660,1.40248399,110730.0,110720.0,0.00204]
[1756993329062,1.40542399,110730.0,110720.0,0.001]
[1756993329267,1.49733998,110730.0,110720.0,0.001]
[1756993329471,0.8965715,110730.0,110720.0,0.00223]
[1756993329678,0.79971551,110730.0,110720.0,0.00223]
[1756993330301,0.79951551,110730.0,110720.0,0.00223]
[1756993330513,1.40525399,110730.0,110720.0,0.00223]
[1756993330716,0.79951551,110730.0,110720.0,0.00223]
[1756993330928,1.40016399,110730.0,110720.0,0.00223]
[1756993331144,1.49704998,110730.0,110720.0,0.001]
[1756993331389,0.79939551,110730.0,110720.0,0.00223]
[1756993331587,1.40016399,110730.0,110720.0,0.00223]
[1756993331794,0.62551551,110730.0,110720.0,0.00223]
[1756993331998,0.79935551,110730.0,110720.0,0.00223]
[1756993332441,1.40012399,110730.0,110720.0,0.00223]
[1756993332657,0.79935551,110730.0,110720.0,0.00223]
[1756993332974,1.22628399,110730.0,110720.0,0.00223]
[1756993333179,1.39996399,110730.0,110720.0,0.00223]
[1756993333288,1.49684998,110730.0,110720.0,0.00223]
[1756993333489,1.49684998,110730.0,110720.0,0.001]
[1756993333695,1.49684998,110730.0,110720.0,0.00223]
[1756993333908,1.58876597,110730.0,110720.0,0.001]
[1756993334125,1.61295583,110730.0,110720.0,0.001]
[1756993334548,0.65167177,110730.0,110720.0,0.00223]
[1756993334807,1.25048025,110730.0,110720.0,0.00223]
[1756993335012,1.39969039,110730.0,110720.0,0.00223]
[1756993335231,1.39969039,110730.0,110720.0,0.00123]
[1756993335717,1.31820638,110730.0,110720.0,0.00123]
[1756993335936,0.07568506,110730.0,110720.0,0.18489377]
[1756993336132,0.29716363,110740.0,110720.0,0.18263583]
[1756993336333,0.29716363,110740.0,110720.0,0.00123]
[1756993336334,0.35381952,110730.0,110720.0,0.00123]
[1756993336570,1.004588,110730.0,110720.0,0.00123]
[1756993337795,1.03207408,110730.0,110720.0,0.00323]
[1756993337984,1.03011408,110730.0,110720.0,0.00323]
[1756993338595,1.49269773,110730.0,110720.0,0.002]
[1756993338968,1.58461372,110730.0,110720.0,0.002]
[1756993339387,1.60880358,110730.0,110720.0,0.004]
[1756993339604,1.68201157,110730.0,110720.0,0.004]
[1756993340282,1.08124309,110730.0,110720.0,0.002]
[1756993340500,1.68201157,110730.0,110720.0,0.002]
[1756993340708,0.18065215,110710.0,110700.0,0.00047118]
[1756993340929,0.97388788,110710.0,110700.0,0.00047118]
[1756993341177,0.97388788,110710.0,110700.0,0.00170118]
[1756993341397,0.97584788,110710.0,110700.0,0.00170118]
[1756993342294,1.52733387,110710.0,110700.0,0.00247118]
[1756993342558,1.62555762,110710.0,110700.0,0.00247118]
[1756993342783,1.67690465,110710.0,110700.0,0.00247118]
[1756993343673,1.67690465,110710.0,110700.0,0.00447118]
[1756993343864,1.50382465,110710.0,110700.0,0.00247118]
[1756993344115,1.67634465,110710.0,110700.0,0.00047118]
[1756993344340,1.65215479,110710.0,110700.0,0.00047118]
[1756993344560,0.64006433,110710.0,110700.0,0.00170118]
[1756993344778,0.86354433,110710.0,110700.0,0.00170118]
[1756993344996,0.85723657,110710.0,110700.0,0.00170118]
[1756993345213,0.48471717,110710.0,110700.0,0.00170118]
[1756993345432,0.83780932,110710.0,110700.0,0.00170118]
[1756993345660,0.83780932,110710.0,110700.0,0.00395953]
[1756993345881,0.66536932,110710.0,110700.0,0.00170118]
[1756993346103,0.83772932,110710.0,110700.0,0.00170118]
[1756993346344,0.83672932,110710.0,110700.0,0.00170118]
[1756993346803,0.41715717,110710.0,110700.0,0.00270118]
[1756993347021,0.77028932,110710.0,110700.0,0.00270118]
[1756993347237,1.3710578,110710.0,110700.0,0.00270118]
[1756993347668,1.46794379,110710.0,110700.0,0.00147118]
[1756993348071,1.46794379,110710.0,110700.0,0.00247118]
[1756993348301,1.48730891,110710.0,110700.0,0.00247118]